bitfinex-derivatives/quotes_SOLF0:USTF0_20250905
["timestamp","ask_amount","ask_price","bid_price","bid_amount"]
[1757101199525,5.47170259,205.14,205.09,0.03247388]
[1757101199921,7.78,205.13,205.09,7.71247388]
[1757101200224,7.78,205.13,205.09,0.03247388]
[1757101200526,7.78,205.13,205.1,7.68]
[1757101201022,0.03542457,205.14,205.09,0.03247388]
[1757101201625,0.03542457,205.14,205.09,7.71247388]
[1757101201819,7.78,205.13,205.09,7.71247388]
[1757101202021,0.03542457,205.14,205.09,7.71247388]
[1757101202226,7.78,205.13,205.09,7.71247388]
[1757101202422,7.78,205.13,205.09,0.03247388]
[1757101202629,0.03542457,205.14,205.09,0.03247388]
[1757101202819,5.47170259,205.14,205.09,0.03247388]
[1757101203219,7.78,205.13,205.09,0.03247388]
[1757101203425,5.47170259,205.14,205.09,0.03247388]
[1757101204527,7.78,205.13,205.09,0.03247388]
[1757101205128,5.43627802,205.12,205.09,0.03247388]
[1757101205535,5.43627802,205.13,205.09,0.03247388]
[1757101205830,7.78,205.12,205.09,0.03247388]
[1757101206231,5.43627802,205.13,205.09,0.03247388]
[1757101206622,7.78,205.11,205.09,0.03247388]
[1757101207028,8.76525262,205.12,205.09,0.03247388]
[1757101207232,7.78,205.11,205.09,0.03247388]
[1757101207433,8.76525262,205.12,205.09,0.03247388]
[1757101207828,7.78,205.11,205.09,0.03247388]
[1757101208029,8.76525262,205.12,205.09,0.03247388]
[1757101208228,7.78,205.11,205.09,0.03247388]
[1757101208430,7.78,205.1,205.09,0.03247388]
[1757101211837,22.87,205.1,204.98,7.68]
[1757101212040,7.78,205.04,204.94,7.68]
[1757101213150,0.03335295,205.01,204.94,7.68]
[1757101214231,0.03335295,205.01,204.95,7.68]
[1757101221041,0.03335295,205.01,204.95,12.0709]
[1757101221245,0.03335295,205.01,204.96,8.03]
[1757101223147,0.03335295,205.01,204.98,8.03]
[1757101223347,0.03335295,205.01,204.97,3.3289746]
[1757101223753,0.03335295,205.01,204.98,8.03]
[1757101223953,0.03335295,205.01,204.97,3.3289746]
[1757101224544,0.03335295,205.01,204.98,8.03]
[1757101224949,0.03335295,205.01,204.97,3.3289746]
[1757101225256,0.03335295,205.01,204.98,8.03]
[1757101225460,0.03335295,205.01,204.99,8.03]
[1757101225752,0.03335295,205.01,204.98,2.13271978]
[1757101225945,0.03335295,205.01,204.99,2.13271978]
[1757101226148,0.03335295,205.01,205.0,8.03]
[1757101228154,0.03335295,205.01,205.0,8.51]
[1757101229556,8.09,205.09,205.0,8.51]
[1757101229760,8.09,205.1,205.04,2.13271978]
[1757101229958,8.09,205.1,205.06,2.13271978]
[1757101230159,8.09,205.12,205.06,2.13271978]
[1757101231955,8.09,205.15,205.1,2.13271978]
[1757101232155,8.09,205.16,205.1,2.13271978]
[1757101238065,8.09,205.16,205.12,2.13271978]
[1757101238364,8.09,205.16,205.12,10.16271978]
[1757101238562,8.09,205.16,205.13,8.03]
[1757101238958,8.09,205.19,205.14,2.13271978]
[1757101239159,8.09,205.19,205.15,8.03]
[1757101239866,8.09,205.23,205.16,2.13271978]
[1757101242467,8.09,205.23,205.18,2.13271978]
[1757101242768,8.09,205.24,205.18,2.13271978]
[1757101242964,8.09,205.22,205.18,2.16618338]
[1757101243265,0.03207864,205.23,205.18,2.16618338]
[1757101243763,8.09,205.22,205.18,2.16618338]
[1757101243959,0.03207864,205.23,205.18,0.0334636]
[1757101244158,8.09,205.22,205.18,2.16618338]
[1757101244365,8.09,205.22,205.18,10.19618338]
[1757101244769,8.09,205.22,205.19,8.03]
[1757101245164,0.03207864,205.23,205.18,2.16618338]
[1757101245363,8.09,205.22,205.18,10.19618338]
[1757101245965,8.09,205.22,205.19,8.03]
[1757101246167,8.09,205.22,205.18,2.16618338]
[1757101246671,8.09,205.22,205.18,10.19618338]
[1757101248467,8.09,205.22,205.18,2.16618338]
[1757101248667,7.91207864,205.23,205.2,9.85271978]
[1757101248971,7.91207864,205.23,205.2,2.13271978]
[1757101249172,7.88,205.22,205.2,2.13271978]
[1757101250768,0.03207864,205.23,205.18,0.0334636]
[1757101250969,7.88,205.22,205.18,0.0334636]
[1757101251169,7.88,205.2,205.18,0.0334636]
[1757101252472,2.13271978,205.21,205.18,0.0334636]
[1757101252672,7.88,205.2,205.18,0.0334636]
[1757101252874,2.13271978,205.21,205.18,0.0334636]
[1757101253075,7.88,205.2,205.18,0.0334636]
[1757101253376,2.13271978,205.21,205.18,0.0334636]
[1757101253570,7.88,205.2,205.18,0.0334636]
[1757101254074,2.13271978,205.21,205.18,0.0334636]
[1757101254277,7.88,205.2,205.18,0.0334636]
[1757101255880,2.13271978,205.21,205.18,0.0334636]
[1757101256479,7.88,205.2,205.18,0.0334636]
[1757101257081,2.13271978,205.21,205.18,0.0334636]
[1757101257282,7.88,205.2,205.18,0.0334636]
[1757101257479,2.13271978,205.21,205.18,0.0334636]
[1757101257678,7.88,205.2,205.18,0.0334636]
[1757101257874,2.13271978,205.19,205.18,0.0334636]
[1757101258074,10.01271978,205.19,205.18,0.0334636]
[1757101263893,10.01271978,205.19,205.09,2.13271978]
[1757101264085,2.13271978,205.16,205.09,2.13271978]
[1757101264285,7.88,205.15,205.09,2.13271978]
[1757101265089,7.88,205.13,205.09,9.85271978]
[1757101265491,7.88,205.13,205.1,7.72]
[1757101267794,0.03347383,205.14,205.09,2.13271978]
[1757101267994,7.88,205.13,205.07,2.13271978]
[1757101268590,7.91228988,205.12,205.07,2.13271978]
[1757101268796,7.91228988,205.12,205.08,7.72]
[1757101270294,7.88,205.11,205.07,2.13271978]
[1757101270497,7.88,205.11,205.07,9.85271978]
[1757101270993,7.88,205.11,205.08,7.72]
[1757101271492,0.03228988,205.12,205.08,7.72]
[1757101271899,0.03228988,205.12,205.07,2.13271978]
[1757101272092,0.03228988,205.12,205.08,7.72]
[1757101272297,0.03228988,205.12,205.07,2.13271978]
[1757101273191,0.03228988,205.12,205.08,7.72]
[1757101273397,0.03228988,205.12,205.07,2.13271978]
[1757101273799,0.03228988,205.12,205.08,7.72]
[1757101274298,0.03228988,205.12,205.1,7.72]
[1757101275794,0.03228988,205.12,205.09,2.13271978]
[1757101275993,0.03228988,205.12,205.11,9.85271978]
[1757101279693,9.56271978,205.21,205.11,9.85271978]
[1757101279995,9.56271978,205.21,205.15,2.13271978]
[1757101280202,7.43,205.21,205.15,2.13271978]
[1757101281299,7.43,205.24,205.18,7.53]
[1757101282601,7.43,205.25,205.19,2.13271978]
[1757101285606,7.43,205.25,205.18,10.85546325]
[1757101286305,7.43,205.25,205.18,7.53]
[1757101286506,7.43,205.25,205.18,10.85546325]
[1757101289508,7.43,205.25,205.19,7.53]
[1757101290508,8.76174127,205.27,205.14,10.85546325]
[1757101290704,3.32546325,205.24,205.14,10.85546325]
[1757101290908,7.43,205.23,205.14,7.53]
[1757101307116,7.43,205.23,205.14,10.85546325]
[1757101307317,7.43,205.24,205.14,10.85546325]
[1757101307914,5.43627802,205.25,205.14,10.85546325]
[1757101308221,7.95,205.24,205.14,10.85546325]
[1757101308518,7.95,205.25,205.14,10.85546325]
[1757101309121,5.43627802,205.26,205.14,10.85546325]
[1757101309311,7.95,205.25,205.14,10.85546325]
[1757101309510,5.43627802,205.26,205.14,10.85546325]
[1757101309824,7.95,205.25,205.14,10.85546325]
[1757101310024,5.43627802,205.26,205.14,10.85546325]
[1757101310322,7.95,205.24,205.14,10.85546325]
[1757101310711,7.95,205.24,205.15,7.49]
[1757101318226,13.38627802,205.24,205.15,7.49]
[1757101318824,7.95,205.24,205.15,7.49]
[1757101319229,13.38627802,205.24,205.16,3.32546325]
[1757101319436,7.95,205.24,205.17,7.49]
[1757101333636,7.95,205.24,205.17,11.8761]
[1757101333843,7.95,205.27,205.2,7.49]
[1757101335035,7.95,205.27,205.22,3.32546325]
[1757101335438,7.95,205.27,205.23,7.49]
[1757101335634,7.95,205.27,205.22,3.32546325]
[1757101336242,7.95,205.27,205.23,7.49]
[1757101337041,7.95,205.27,205.22,3.32546325]
[1757101337435,5.43627802,205.31,205.22,10.81546325]
[1757101338138,7.95,205.3,205.22,10.81546325]
[1757101338335,7.71,205.3,205.22,10.81546325]
[1757101338538,5.43627802,205.31,205.22,10.81546325]
[1757101338739,7.71,205.3,205.22,10.81546325]
[1757101338942,5.43627802,205.31,205.22,10.81546325]
[1757101339144,7.71,205.3,205.22,7.49]
[1757101340743,7.71,205.3,205.24,3.32546325]
[1757101340943,7.71,205.31,205.25,7.68]
[1757101346736,7.71,205.31,205.24,3.32546325]
[1757101347143,7.71,205.31,205.23,7.68]
[1757101347442,9.83756001,205.31,205.24,2.12756001]
[1757101348937,7.71,205.31,205.24,2.12756001]
[1757101349137,9.83756001,205.31,205.24,2.12756001]
[1757101349338,7.71,205.31,205.24,2.12756001]
[1757101349843,9.83756001,205.31,205.24,2.12756001]
[1757101352054,7.71,205.28,205.21,7.68]
[1757101352348,7.71,205.28,205.21,9.80756001]
[1757101353052,7.71,205.28,205.24,7.68]
[1757101353252,7.71,205.31,205.24,7.68]
[1757101353447,2.12756001,205.3,205.24,7.68]
[1757101353643,7.71,205.29,205.24,7.68]
[1757101353845,2.12756001,205.3,205.24,7.68]
[1757101354045,7.71,205.29,205.24,7.68]
[1757101354848,2.12756001,205.3,205.24,7.68]
[1757101355550,7.71,205.29,205.24,7.68]
[1757101355946,2.12756001,205.3,205.24,7.68]
[1757101356250,7.71,205.29,205.24,7.68]
[1757101356448,2.12756001,205.3,205.24,7.68]
[1757101356645,7.71,205.29,205.24,7.68]
[1757101357246,2.12756001,205.3,205.24,7.68]
[1757101357448,7.71,205.29,205.24,7.68]
[1757101357853,9.83756001,205.3,205.24,7.68]
[1757101358154,7.71,205.31,205.25,2.12756001]
[1757101363158,7.71,205.31,205.24,7.68]
[1757101368162,7.71,205.31,205.25,2.12756001]
[1757101371359,7.96,205.27,205.16,25.5]
[1757101371562,7.96,205.27,205.2,8.0]
[1757101372462,7.96,205.27,205.21,2.12756001]
[1757101372759,7.96,205.27,205.2,8.0]
[1757101372957,7.96,205.27,205.21,2.12756001]
[1757101373962,7.96,205.25,205.18,2.12756001]
[1757101374167,2.12756001,205.24,205.18,2.12756001]
[1757101374364,7.96,205.21,205.15,8.0]
[1757101375561,2.12756001,205.18,205.11,8.0]
[1757101375766,2.12756001,205.18,205.09,108.95913936]
[1757101375767,7.96,205.16,205.09,2.12756001]
[1757101375963,10.08756001,205.16,205.09,2.12756001]
[1757101376157,20.04627802,205.21,205.08,8.0]
[1757101376158,10.08756001,205.14,205.08,8.0]
[1757101377570,10.08756001,205.14,205.05,2.12756001]
[1757101377765,7.96,205.11,205.04,10.12756001]
[1757101386976,7.96,205.05,204.99,8.0]
[1757101387177,7.96,205.03,204.97,2.12756001]
[1757101387372,7.96,205.03,204.96,8.0]
[1757101388575,2.12756001,205.0,204.92,8.0]
[1757101388872,24.89,205.09,204.87,0.84922581]
[1757101388873,7.96,204.99,204.87,34.68]
[1757101389071,7.96,204.97,204.9,2.12756001]
[1757101389376,7.96,204.97,204.88,8.0]
[1757101389377,2.12756001,204.96,204.88,8.0]
[1757101389576,2.12756001,204.96,204.88,10.12756001]
[1757101392775,7.96,204.95,204.88,10.12756001]
[1757101393180,2.12756001,204.94,204.88,8.0]
[1757101393775,7.96,204.93,204.88,8.0]
[1757101394178,10.14,205.0,204.88,8.0]
[1757101394377,2.12756001,204.95,204.88,8.0]
[1757101394982,2.12756001,204.95,204.88,10.12756001]
[1757101395176,7.96,204.96,204.89,8.0]
[1757101395376,7.96,204.96,204.9,2.12756001]
[1757101395572,2.12756001,204.97,204.91,8.0]
[1757101395982,10.08756001,204.99,204.93,8.0]
[1757101397086,2.12756001,204.95,204.87,8.0]
[1757101397284,7.96,204.95,204.87,8.0]
[1757101397482,7.96,204.95,204.88,2.12756001]
[1757101397785,7.96,204.95,204.89,8.0]
[1757101397987,2.12756001,204.98,204.91,8.0]
[1757101398883,7.96,204.99,204.91,8.0]
[1757101399084,2.12756001,204.98,204.91,8.0]
[1757101401478,0.03228805,204.97,204.92,0.03607057]
[1757101401677,0.03228805,204.97,204.92,7.70607057]
[1757101401678,8.0,204.96,204.92,7.70607057]
[1757101403588,0.03228805,204.97,204.92,2.16363058]
[1757101404185,8.03228805,204.97,204.93,7.67]
[1757101406785,0.03228805,204.97,204.92,0.03607057]
[1757101407287,2.12756001,204.95,204.92,0.03607057]
[1757101407487,8.0,204.94,204.92,0.03607057]
[1757101409183,3.33610992,204.96,204.92,0.03607057]
[1757101409184,8.0,204.95,204.92,0.03607057]
[1757101409389,8.0,204.96,204.92,0.03607057]
[1757101409788,3.36839797,204.97,204.92,0.03607057]
[1757101409991,8.0,204.96,204.92,0.03607057]
[1757101410191,3.36839797,204.97,204.92,0.03607057]
[1757101410493,8.0,204.96,204.92,0.03607057]
[1757101410695,3.36839797,204.97,204.92,0.03607057]
[1757101410889,8.0,204.96,204.92,0.03607057]
[1757101411196,0.03228805,204.97,204.94,7.67]
[1757101411495,8.03228805,204.97,204.94,7.67]
[1757101412190,0.03228805,204.97,204.94,7.67]
[1757101412392,8.0,204.96,204.92,0.03607057]
[1757101412792,8.0,204.96,204.93,7.67]
[1757101416597,8.0,204.96,204.92,7.70607057]
[1757101416896,8.0,204.96,204.93,7.67]
[1757101417698,8.0,204.96,204.92,0.03607057]
[1757101417898,8.0,204.96,204.92,7.70607057]
[1757101418490,8.0,204.96,204.93,7.67]
[1757101419091,8.03228805,204.97,204.93,7.67]
[1757101421195,0.03228805,204.97,204.93,7.67]
[1757101421703,8.0,204.96,204.93,7.67]
[1757101422103,0.03228805,204.97,204.92,0.03607057]
[1757101422402,8.0,204.96,204.92,0.03607057]
[1757101422994,3.33610992,204.95,204.92,0.03607057]
[1757101423198,8.0,204.94,204.92,0.03607057]
[1757101425799,8.0,204.96,204.92,0.03607057]
[1757101426204,3.36839797,204.97,204.92,0.03607057]
[1757101426699,8.0,204.96,204.92,0.03607057]
[1757101426905,3.36839797,204.97,204.92,0.03607057]
[1757101427094,8.0,204.96,204.92,0.03607057]
[1757101427299,3.36839797,204.97,204.92,0.03607057]
[1757101427695,8.0,204.96,204.92,0.03607057]
[1757101427904,0.03228805,204.97,204.92,0.03607057]
[1757101428104,8.0,204.96,204.92,0.03607057]
[1757101428303,7.67,204.96,204.92,0.03607057]
[1757101429404,3.33610992,204.94,204.92,0.03607057]
[1757101429605,7.67,204.93,204.92,0.03607057]
[1757101436207,8.80467599,204.97,204.92,0.03607057]
[1757101436407,7.67,204.96,204.92,0.03607057]
[1757101437405,7.67,204.96,204.92,7.41607057]
[1757101437605,7.67,204.96,204.93,7.38]
[1757101440717,0.03228805,204.97,204.92,0.03607057]
[1757101440918,7.67,204.96,204.92,7.41607057]
[1757101441814,0.03228805,204.97,204.93,7.38]
[1757101442116,0.03228805,204.97,204.92,0.03607057]
[1757101442312,0.03228805,204.97,204.93,7.38]
[1757101442513,0.03228805,204.97,204.92,0.03607057]
[1757101442719,0.03228805,204.97,204.93,7.38]
[1757101443716,0.03228805,204.97,204.92,0.03607057]
[1757101444108,0.03228805,204.97,204.93,7.38]
[1757101444311,0.03228805,204.97,204.92,0.03607057]
[1757101445112,0.03228805,204.97,204.93,7.38]
[1757101445316,0.03228805,204.97,204.92,0.03607057]
[1757101445517,0.03228805,204.97,204.93,7.38]
[1757101445908,0.03228805,204.97,204.92,0.03607057]
[1757101446113,0.03228805,204.97,204.93,7.38]
[1757101446313,0.03228805,204.97,204.92,0.03607057]
[1757101446514,0.03228805,204.97,204.93,7.38]
[1757101447015,0.03228805,204.97,204.92,0.03607057]
[1757101447216,0.03228805,204.97,204.93,7.38]
[1757101447420,0.03228805,204.97,204.92,0.03607057]
[1757101447718,0.03228805,204.97,204.93,7.38]
[1757101448311,0.03228805,204.97,204.92,0.03607057]
[1757101448516,0.03228805,204.97,204.93,7.38]
[1757101449011,0.03228805,204.97,204.92,0.03607057]
[1757101449618,0.03228805,204.97,204.93,7.38]
[1757101449819,0.03228805,204.97,204.92,0.03607057]
[1757101450420,0.03228805,204.97,204.93,7.38]
[1757101450622,0.03228805,204.97,204.92,0.03607057]
[1757101450822,7.67,204.96,204.92,0.03607057]
[1757101451016,3.36839797,204.97,204.92,0.03607057]
[1757101451213,7.67,204.96,204.92,0.03607057]
[1757101451417,11.00610992,204.96,204.92,0.03607057]
[1757101451722,3.33610992,204.96,204.92,0.03607057]
[1757101452122,7.67,204.95,204.92,0.03607057]
[1757101452324,3.33610992,204.96,204.92,0.03607057]
[1757101452825,7.67,204.95,204.92,0.03607057]
[1757101453017,3.33610992,204.96,204.92,0.03607057]
[1757101453217,7.67,204.95,204.92,0.03607057]
[1757101453414,3.33610992,204.96,204.92,0.03607057]
[1757101454420,7.67,204.95,204.92,0.03607057]
[1757101454621,3.33610992,204.96,204.92,0.03607057]
[1757101455321,5.46856607,204.97,204.92,0.03607057]
[1757101455322,0.03228805,204.97,204.92,0.03607057]
[1757101455531,7.67,204.96,204.93,7.38]
[1757101455828,7.67,204.96,204.92,0.03607057]
[1757101456017,0.03228805,204.97,204.92,0.03607057]
[1757101456221,7.67,204.96,204.92,7.41607057]
[1757101456427,0.03228805,204.97,204.92,7.41607057]
[1757101456624,7.67,204.96,204.92,7.41607057]
[1757101456829,0.03228805,204.97,204.92,7.41607057]
[1757101457224,7.67,204.96,204.92,7.41607057]
[1757101457425,0.03228805,204.97,204.92,7.41607057]
[1757101457924,0.03228805,204.97,204.92,0.03607057]
[1757101458825,0.03228805,204.97,204.93,7.67]
[1757101459031,7.83228805,204.97,204.93,7.67]
[1757101459232,7.8,204.96,204.93,7.67]
[1757101460732,7.8,204.96,204.92,0.03607057]
[1757101460733,0.03228805,204.97,204.92,0.03607057]
[1757101460935,0.03228805,204.97,204.93,7.67]
[1757101461232,7.83228805,204.97,204.93,7.67]
[1757101462043,7.8,204.96,204.93,7.67]
[1757101462434,0.03228805,204.97,204.93,7.67]
[1757101462633,7.8,204.96,204.93,7.67]
[1757101466742,0.03228805,204.97,204.92,0.03607057]
[1757101467244,7.83228805,204.97,204.93,7.67]
[1757101468642,7.83228805,204.97,204.92,0.03607057]
[1757101469043,7.83228805,204.97,204.93,7.67]
[1757101469243,7.83228805,204.97,204.92,0.03607057]
[1757101469742,7.83228805,204.97,204.93,7.67]
[1757101470038,7.8,204.96,204.92,0.03607057]
[1757101470243,7.8,204.96,204.93,7.67]
[1757101472433,0.03228805,204.97,204.93,9.8042856]
[1757101472636,0.03228805,204.97,204.95,2.1342856]
[1757101472835,0.03228805,204.97,204.96,7.67]
[1757101481846,0.03228805,204.97,204.96,9.8042856]
[1757101489352,0.03228805,204.97,204.96,7.67]
[1757101490655,8.03,204.96,204.92,9.71035617]
[1757101491054,8.03,204.96,204.92,2.17035617]
[1757101491254,8.03,204.96,204.93,7.54]
[1757101491455,8.06228805,204.97,204.92,2.17035617]
[1757101492051,8.06228805,204.97,204.93,7.54]
[1757101492350,2.16657365,204.97,204.92,0.03607057]
[1757101492550,10.1642856,204.93,204.92,0.03607057]
[1757101500060,8.03,204.95,204.92,0.03607057]
[1757101500358,8.06228805,204.97,204.93,2.1342856]
[1757101500567,2.1342856,204.95,204.92,0.03607057]
[1757101500868,10.1642856,204.93,204.92,0.03607057]
[1757101502565,8.03,204.93,204.92,0.03607057]
[1757101502764,10.1642856,204.93,204.92,0.03607057]
[1757101504765,10.1642856,204.95,204.92,0.03607057]
[1757101504964,8.03,204.94,204.92,0.03607057]
[1757101505262,2.1342856,204.95,204.92,0.03607057]
[1757101505858,8.03,204.94,204.92,0.03607057]
[1757101506762,2.1342856,204.95,204.92,7.57607057]
[1757101507458,8.03,204.94,204.92,0.03607057]
[1757101508261,2.16657365,204.97,204.92,0.03607057]
[1757101508262,2.1342856,204.95,204.92,0.03607057]
[1757101508467,10.1642856,204.93,204.92,0.03607057]
[1757101509365,8.03,204.93,204.92,0.03607057]
[1757101509566,10.1642856,204.93,204.92,0.03607057]
[1757101512172,8.03,204.93,204.92,0.03607057]
[1757101512568,10.1642856,204.93,204.92,0.03607057]
[1757101515067,8.03,204.93,204.92,0.03607057]
[1757101519272,10.1642856,204.93,204.92,0.03607057]
[1757101520672,8.02,204.95,204.92,7.68607057]
[1757101521768,2.1342856,204.96,204.92,0.03607057]
[1757101522976,8.02,204.95,204.92,0.03607057]
[1757101523776,2.1342856,204.94,204.92,0.03607057]
[1757101523976,8.02,204.93,204.92,0.03607057]
[1757101525571,0.03228805,204.97,204.93,7.65]
[1757101525776,8.05228805,204.97,204.93,7.65]
[1757101526170,0.03228805,204.97,204.94,7.65]
[1757101526374,0.03228805,204.97,204.93,2.1342856]
[1757101526573,0.03228805,204.97,204.94,7.65]
[1757101528975,0.03228805,204.97,204.93,2.1342856]
[1757101529175,8.02,204.96,204.92,0.03607057]
[1757101529380,8.02,204.96,204.92,7.68607057]
[1757101529980,2.16657365,204.97,204.92,7.68607057]
[1757101530275,0.03228805,204.97,204.92,0.03607057]
[1757101530581,8.02,204.96,204.92,0.03607057]
[1757101530779,0.03228805,204.97,204.92,0.03607057]
[1757101531477,8.02,204.96,204.92,0.03607057]
[1757101531874,0.03228805,204.97,204.93,7.65]
[1757101532580,0.03228805,204.97,204.92,0.03607057]
[1757101533476,0.03228805,204.97,204.93,7.65]
[1757101534371,8.05228805,204.97,204.93,7.65]
[1757101534576,8.02,204.96,204.92,0.03607057]
[1757101534785,8.02,204.96,204.92,7.68607057]
[1757101534977,8.02,204.96,204.93,7.65]
[1757101536683,8.02,204.96,204.92,0.03607057]
[1757101536884,8.02,204.96,204.92,7.68607057]
[1757101538977,8.02,204.96,204.92,0.03607057]
[1757101540985,3.36730726,204.97,204.92,0.03607057]
[1757101541285,8.02,204.96,204.92,0.03607057]
[1757101541488,3.36730726,204.97,204.92,0.03607057]
[1757101542088,8.02,204.96,204.93,7.65]
[1757101542595,8.02,204.96,204.92,7.68607057]
[1757101543288,0.03228805,204.97,204.92,7.68607057]
[1757101543483,13.45627802,204.96,204.92,0.03607057]
[1757101543883,8.02,204.96,204.92,0.03607057]
[1757101545800,3.36730726,204.97,204.92,0.03607057]
[1757101546499,0.03228805,204.97,204.92,0.03607057]
[1757101546700,8.02,204.96,204.92,0.03607057]
[1757101546890,0.03228805,204.97,204.92,0.03607057]
[1757101547897,11.35501921,204.96,204.92,0.03607057]
[1757101548097,16.79129723,204.96,204.92,0.03607057]
[1757101550403,7.60228805,204.97,204.93,7.38]
[1757101551795,7.60228805,204.97,204.92,0.03607057]
[1757101551796,0.03228805,204.97,204.92,0.03607057]
[1757101551998,5.46856607,204.97,204.92,0.03607057]
[1757101552202,0.03228805,204.97,204.92,0.03607057]
[1757101552395,7.57,204.96,204.92,0.03607057]
[1757101553193,0.03228805,204.97,204.92,0.03607057]
[1757101553397,0.03228805,204.97,204.93,7.38]
[1757101553601,7.60228805,204.97,204.93,7.38]
[1757101554496,7.57,204.96,204.92,0.03607057]
[1757101554699,7.57,204.96,204.92,7.41607057]
[1757101555402,0.03228805,204.97,204.93,7.38]
[1757101555599,7.60228805,204.97,204.93,7.38]
[1757101558410,7.57,204.96,204.92,0.03607057]
[1757101559503,7.57,204.96,204.92,7.41607057]
[1757101560411,0.03228805,204.97,204.92,0.03607057]
[1757101560706,0.03228805,204.97,204.93,7.38]
[1757101561007,0.03228805,204.97,204.92,3.37108978]
[1757101561209,0.03228805,204.97,204.93,7.38]
[1757101561603,0.03228805,204.97,204.92,3.37108978]
[1757101563106,0.03228805,204.97,204.93,7.38]
[1757101564707,0.03228805,204.97,204.92,3.37108978]
[1757101565014,7.60228805,204.97,204.93,7.38]
[1757101565210,0.03228805,204.97,204.92,0.03607057]
[1757101565409,0.03228805,204.97,204.93,7.38]
[1757101566010,0.03228805,204.97,204.92,0.03607057]
[1757101566411,0.03228805,204.97,204.93,7.38]
[1757101566708,0.03228805,204.97,204.92,0.03607057]
[1757101567809,7.57,204.96,204.92,0.03607057]
[1757101568612,0.03228805,204.97,204.92,0.03607057]
[1757101569917,7.57,204.96,204.92,0.03607057]
[1757101570416,0.03228805,204.97,204.92,0.03607057]
[1757101570615,7.57,204.96,204.92,0.03607057]
[1757101571411,0.03228805,204.97,204.92,0.03607057]
[1757101576421,7.57,204.96,204.92,0.03607057]
[1757101577320,0.03228805,204.97,204.92,0.03607057]
[1757101577720,7.60228805,204.97,204.93,7.38]
[1757101578227,8.05,204.96,204.93,7.38]
[1757101578521,0.03228805,204.97,204.93,7.93]
[1757101579023,0.03228805,204.97,204.92,0.03607057]
[1757101580131,0.03228805,204.97,204.93,7.93]
[1757101580327,0.03228805,204.97,204.95,3.33501921]
[1757101580628,0.03228805,204.97,204.96,7.93]
[1757101581524,5.43627802,205.07,204.96,8.41]
[1757101581728,5.43627802,205.08,205.01,7.93]
[1757101582522,5.43627802,205.09,205.01,7.93]
[1757101582718,13.48627802,205.1,205.02,0.03136526]
[1757101582921,8.05,205.1,205.03,11.26501921]
[1757101584227,8.05,205.1,205.04,7.93]
[1757101585937,5.43627802,205.13,205.06,3.33501921]
[1757101586224,8.05,205.14,205.07,7.93]
[1757101586428,8.05,205.14,205.07,7.96517348]
[1757101591532,8.05,205.14,205.08,2.13076575]
[1757101592227,8.05,205.14,205.09,7.93]
[1757101592432,8.05,205.14,205.11,7.93]
[1757101596945,8.05,205.14,205.09,2.13076575]
[1757101597136,8.05,205.14,205.1,7.93]
[1757101598537,2.13076575,205.11,205.07,0.03517348]
[1757101598847,10.18076575,205.09,205.07,0.03517348]
[1757101599044,8.05,205.08,205.07,0.03517348]
[1757101606950,10.18076575,205.08,205.07,0.03517348]
[1757101608743,2.13076575,205.08,204.96,9.63076575]
[1757101608945,9.59076575,205.03,204.96,9.63076575]
[1757101609955,0.03293192,205.02,204.97,7.5]
[1757101610855,0.03293192,205.02,204.98,7.5]
[1757101611057,0.03293192,205.02,204.98,9.63076575]
[1757101611347,0.03293192,205.02,204.97,0.03087856]
[1757101611348,0.03293192,205.02,205.01,7.5]
[1757101620664,15.02704377,205.12,205.01,7.98]
[1757101620867,7.46,205.16,205.1,7.5]
[1757101621069,9.59076575,205.16,205.09,2.13076575]
[1757101621961,7.46,205.16,205.1,0.03088773]
[1757101622161,9.59076575,205.16,205.1,0.03088773]
[1757101622568,9.59076575,205.16,205.1,2.16165348]